bitfinex-derivatives/quotes_ETHF0:USTF0_20260204
["timestamp","ask_amount","ask_price","bid_price","bid_amount"]
[1770229559413,7.32891469,2095.8,2094.9,0.00537723]
[1770229559708,0.48371467,2096.1,2094.4,7.19868109]
[1770229559709,7.32891469,2095.5,2094.4,7.19868109]
[1770229560006,7.56792469,2095.5,2094.1,0.23916]
[1770229560206,7.56792469,2095.5,2094.1,7.43784109]
[1770229560404,7.32891469,2095.2,2093.8,0.478]
[1770229560600,7.56805469,2094.4,2093.8,0.00615773]
[1770229560803,7.57213178,2094.4,2092.9,0.2393]
[1770229561104,7.32891469,2094.2,2092.8,7.67668109]
[1770229561710,7.32891469,2094.2,2092.8,0.00475392]
[1770229561913,7.56814469,2093.6,2092.8,0.00475392]
[1770229562212,7.56814469,2093.6,2092.5,7.19868109]
[1770229562504,7.32891469,2093.3,2091.6,7.19868109]
[1770229562705,7.32891469,2093.3,2091.2,7.67668109]
[1770229562706,8.42974469,2092.9,2091.2,7.67668109]
[1770229562907,7.32891469,2093.4,2092.0,7.19868109]
[1770229563109,0.00556123,2093.4,2092.2,7.19868109]
[1770229563810,0.478,2094.1,2092.8,7.43799109]
[1770229564211,7.56802469,2094.7,2092.8,7.43799109]
[1770229564406,7.56802469,2094.7,2092.2,1.57918]
[1770229564407,3.98020803,2094.6,2093.8,7.43788109]
[1770229564606,8.42848469,2095.3,2093.8,7.19868109]
[1770229564814,7.33321245,2094.6,2093.8,0.00373023]
[1770229565108,7.32891469,2095.4,2094.0,7.43786109]
[1770229565408,7.32891469,2095.8,2094.3,7.43782109]
[1770229566007,7.32891469,2096.6,2095.1,7.43773109]
[1770229566308,42.29139944,2097.2,2096.2,8.29776109]
[1770229566507,7.32891469,2097.6,2096.2,7.19868109]
[1770229566704,49.62031413,2098.0,2096.6,1.09888]
[1770229567007,7.32891469,2098.0,2096.5,7.19868109]
[1770229567211,7.32891469,2097.7,2096.0,7.19868109]
[1770229567412,7.32891469,2097.1,2096.0,0.00414743]
[1770229567609,7.32891469,2096.9,2096.0,0.00414743]
[1770229567908,0.478,2097.1,2095.2,7.19868109]
[1770229567909,7.32891469,2096.7,2095.2,7.19868109]
[1770229568211,7.32891469,2096.7,2094.9,0.478]
[1770229568212,7.80691469,2097.1,2095.4,7.19868109]
[1770229568414,7.80691469,2097.1,2095.6,7.19868109]
[1770229568815,7.32891469,2096.9,2095.6,7.19868109]
[1770229569004,7.32891469,2096.9,2095.6,7.2047528]
[1770229569313,7.32891469,2096.9,2095.6,0.00607171]
[1770229569511,7.32891469,2096.7,2095.6,0.00607171]
[1770229570417,7.32891469,2096.5,2094.9,0.478]
[1770229570612,7.32891469,2096.3,2094.7,7.19868109]
[1770229570805,7.32891469,2096.3,2094.1,2.20367]
[1770229570806,7.56785469,2096.1,2094.2,7.19868109]
[1770229571007,7.32891469,2095.9,2094.2,7.19868109]
[1770229571218,7.32891469,2096.1,2094.5,7.19868109]
[1770229571515,7.33326989,2096.1,2094.5,7.20383041]
[1770229572013,0.0043552,2096.1,2094.9,7.19868109]
[1770229572216,7.32891469,2096.9,2095.1,7.19868109]
[1770229572412,7.32891469,2096.9,2095.3,8.53727109]
[1770229572710,0.478,2097.2,2095.8,7.43765109]
[1770229573111,0.478,2097.2,2096.0,7.19868109]
[1770229573318,0.48242284,2097.2,2096.0,7.20360769]
[1770229574019,7.81133753,2097.2,2096.0,7.20360769]
[1770229574210,4.00954792,2097.1,2096.0,0.0049266]
[1770229574415,7.32891469,2097.0,2096.0,0.0049266]
[1770229575211,7.56775469,2097.0,2096.0,0.0049266]
[1770229575518,7.56778469,2096.8,2095.2,7.19868109]
[1770229575713,0.477,2096.7,2095.2,7.19868109]
[1770229575910,7.32891469,2096.6,2095.2,7.19868109]
[1770229576216,42.29582228,2097.2,2095.7,7.43766109]
[1770229576217,7.33333753,2097.2,2095.7,7.43766109]
[1770229576512,7.57215753,2097.2,2095.7,7.20209792]
[1770229576713,7.33333753,2097.2,2095.7,7.20209792]
[1770229577711,7.57215753,2097.2,2095.7,7.20209792]
[1770229577909,7.32891469,2096.9,2095.7,7.20209792]
[1770229579422,0.00442284,2097.2,2095.7,8.30143792]
[1770229579726,0.00442284,2097.2,2096.1,7.19868109]
[1770229579926,0.00442284,2097.2,2096.1,7.43762109]
[1770229580221,7.80591469,2097.7,2096.3,7.43760109]
[1770229580426,7.32891469,2097.0,2095.7,0.00341683]
[1770229580626,7.56780469,2096.6,2095.7,0.00341683]
[1770229580822,7.56782469,2096.4,2094.9,7.19868109]
[1770229581728,7.56786469,2096.1,2094.9,7.19868109]
[1770229581924,0.00491503,2096.4,2095.1,7.19868109]
[1770229582125,7.56789469,2095.8,2094.9,0.00446602]
[1770229582325,7.32891469,2095.6,2094.3,7.19868109]
[1770229582829,7.32891469,2095.2,2094.1,7.82418109]
[1770229583232,7.32891469,2095.0,2094.1,0.6308588]
[1770229583430,7.32891469,2094.8,2093.3,7.19868109]
[1770229583627,7.32891469,2095.2,2093.7,7.75411143]
[1770229583827,7.57890926,2095.6,2094.1,7.75411143]
[1770229584232,0.477,2095.6,2094.3,7.99325143]
[1770229584532,7.58502371,2095.6,2094.3,7.75787191]
[1770229585126,0.48311445,2095.6,2094.4,8.70901143]
[1770229585331,42.29139944,2096.4,2094.9,7.75411143]
[1770229585631,4.02436,2096.3,2094.9,7.99319143]
[1770229585831,7.10190926,2096.1,2094.9,7.75411143]
[1770229586033,7.34086926,2096.0,2094.9,7.75411143]
[1770229586230,7.34086926,2096.0,2094.5,7.75411143]
[1770229586429,7.34633471,2096.0,2094.5,7.75411143]
[1770229586629,7.34633471,2096.0,2094.4,0.9549]
[1770229586630,0.00546545,2096.0,2094.7,7.75411143]
[1770229587027,7.10737471,2096.0,2094.7,7.75411143]
[1770229587732,4.0262586,2095.9,2094.4,0.9549]
[1770229587934,7.10190926,2095.7,2094.4,0.9549]
[1770229588534,0.00546545,2096.0,2094.4,8.94814143]
[1770229588733,7.10737471,2096.0,2094.4,8.94814143]
[1770229588933,7.10190926,2095.8,2094.4,8.70901143]
[1770229589424,0.00546545,2096.0,2095.0,7.75411143]
[1770229589625,0.00546545,2096.0,2095.0,7.99318143]
[1770229589823,0.477,2096.5,2095.2,7.99315143]
[1770229590228,7.57890926,2096.5,2095.2,7.99315143]
[1770229591031,7.58398822,2096.5,2095.2,7.99315143]
[1770229591228,7.10190926,2096.3,2095.2,7.75411143]
[1770229592533,11.17154482,2096.2,2094.8,7.75411143]
[1770229592732,7.10190926,2096.2,2094.8,7.75411143]
[1770229593031,7.34088926,2095.8,2094.8,7.75411143]
[1770229593332,7.34096926,2095.1,2094.4,0.9549]
[1770229593535,7.10190926,2094.8,2093.6,7.75411143]
[1770229593728,4.0699769,2094.7,2093.6,7.99333143]
[1770229594329,11.17188616,2094.6,2093.2,7.99338143]
[1770229594535,4.0699769,2094.5,2093.4,7.75411143]
[1770229594736,42.29139944,2094.9,2093.6,7.75411143]
[1770229595039,4.11453641,2094.9,2093.8,7.75411143]
[1770229595237,4.11067432,2094.8,2094.0,7.75411143]
[1770229595537,0.00386209,2094.9,2094.0,7.75411143]
[1770229595731,7.10190926,2095.4,2094.0,7.75411143]
[1770229595732,42.29139944,2095.7,2094.5,7.75411143]
[1770229595938,42.29139944,2095.9,2094.8,7.75411143]
[1770229596237,4.10911825,2095.8,2095.1,7.99316143]
[1770229596440,6.1109908,2096.2,2095.1,7.99316143]
[1770229596441,0.477,2096.2,2095.1,7.99316143]
[1770229596637,4.10830205,2096.1,2095.1,7.99731816]
[1770229596830,0.48120729,2096.2,2095.1,7.99731816]
[1770229597031,4.10822083,2096.1,2095.4,7.75411143]
[1770229597237,42.29139944,2096.7,2095.6,7.75411143]
[1770229597438,42.29139944,2096.7,2095.2,1.09957]
[1770229597439,7.34079926,2096.6,2095.2,7.75411143]
[1770229597632,53.5045611,2096.5,2095.2,7.75411143]
[1770229597940,49.3933087,2096.3,2095.2,7.75411143]
[1770229598139,4.1112524,2096.2,2095.2,7.75411143]
[1770229598344,4.1112524,2096.1,2095.2,7.75411143]
[1770229598640,4.12042635,2096.0,2095.1,0.00415673]
[1770229598837,4.12056352,2095.9,2095.1,0.00415673]
[1770229599037,42.29139944,2095.8,2095.1,0.00415673]
[1770229599233,46.41240902,2095.7,2095.1,0.00415673]
[1770229599542,11.22291884,2095.6,2094.5,7.75411143]
[1770229599839,11.22291884,2095.6,2094.1,7.99328143]
[1770229599840,53.51431828,2095.5,2094.1,7.99328143]
[1770229600034,7.10190926,2095.3,2094.1,7.99328143]
[1770229600233,53.51431828,2095.2,2094.1,7.75411143]
[1770229600434,11.22291884,2095.1,2094.1,0.00566342]
[1770229600732,53.51431828,2095.1,2094.1,0.00566342]
[1770229600938,11.22291884,2095.0,2094.1,0.00566342]
[1770229601138,4.12100958,2094.9,2094.1,0.00566342]
[1770229601538,0.477,2095.2,2094.1,7.75977485]
[1770229601841,4.12055951,2095.1,2094.1,7.75977485]
[1770229602041,0.477,2095.2,2094.1,7.75977485]
[1770229602241,4.11968211,2095.1,2094.1,7.75977485]
[1770229602443,0.477,2095.2,2094.1,7.75977485]
[1770229602636,0.23899,2095.7,2094.1,7.75977485]
[1770229602637,42.29609649,2096.2,2095.0,7.99318143]
[1770229602834,4.11803547,2096.1,2095.2,7.75411143]
[1770229603039,0.00469705,2096.2,2095.3,7.99314143]
[1770229603234,0.00469705,2096.2,2095.3,7.75411143]
[1770229604043,4.1220066,2096.1,2094.9,7.75411143]
[1770229604243,7.10190926,2095.6,2094.1,0.00566342]
[1770229604541,7.10190926,2095.2,2094.1,0.00566342]
[1770229604739,4.12358401,2095.2,2094.1,7.75977485]
[1770229604944,4.12358401,2095.1,2094.2,7.99326143]
[1770229605244,42.29139944,2095.5,2094.4,7.75411143]
[1770229605444,4.13948888,2095.4,2094.6,7.75411143]
[1770229605639,0.477,2095.7,2094.6,7.99322143]
[1770229605844,7.10190926,2095.5,2094.2,7.75411143]
[1770229606140,11.49396777,2095.4,2094.2,7.75411143]
[1770229606346,4.15303851,2095.3,2094.2,7.75411143]
[1770229606538,53.54634721,2095.4,2094.2,7.75411143]
[1770229606741,7.10190926,2095.2,2094.1,0.00566342]
[1770229607046,42.29139944,2096.0,2094.8,7.99320143]
[1770229607242,42.29139944,2096.1,2095.0,7.75411143]
[1770229607442,42.29139944,2096.1,2094.9,0.23908]
[1770229607443,0.00469705,2096.2,2095.2,7.99315143]
[1770229607748,49.8703087,2096.6,2095.4,7.75411143]
[1770229607947,7.10190926,2096.5,2095.4,7.75411143]
[1770229608447,42.29139944,2096.8,2095.4,7.75411143]
[1770229608649,0.00576751,2096.8,2095.4,7.75411143]
[1770229609050,0.00576751,2096.8,2095.6,7.75411143]
[1770229609253,0.00576751,2096.8,2095.6,7.75788933]
[1770229609446,7.10190926,2097.5,2096.4,7.75411143]
[1770229609651,42.29139944,2097.7,2096.4,7.75411143]
[1770229609950,7.10190926,2097.6,2096.4,7.75411143]
[1770229610151,42.29139944,2097.9,2096.4,7.75411143]
[1770229610353,7.10190926,2097.8,2096.4,7.75411143]
[1770229611346,7.34069926,2097.5,2095.8,7.99308143]
[1770229611554,0.00538263,2097.9,2096.2,7.75411143]
[1770229612147,0.00538263,2097.9,2096.5,7.75411143]
[1770229612344,0.00538263,2097.9,2096.7,7.75411143]
[1770229612650,7.10729189,2097.9,2096.7,7.75411143]
[1770229612851,7.10190926,2097.7,2096.4,0.477]
[1770229613250,7.10190926,2097.7,2096.3,7.75411143]
[1770229613448,7.34071926,2097.3,2095.9,7.75411143]
[1770229613643,7.10190926,2097.1,2095.9,7.75411143]
[1770229613845,7.81773926,2097.1,2095.9,7.75411143]
[1770229614246,7.47977987,2096.8,2095.6,0.0037779]
[1770229614451,7.24091987,2096.3,2095.6,0.0037779]
[1770229614649,7.24685613,2096.3,2095.1,7.08435515]
[1770229615250,0.00593626,2096.3,2095.1,7.08435515]
[1770229615655,0.00593626,2096.3,2095.1,7.08885556]
[1770229616053,0.00593626,2096.3,2095.1,7.32790556]
[1770229616249,0.00593626,2096.3,2095.1,7.08885556]
[1770229618158,50.00931931,2097.0,2095.2,0.23904]
[1770229618456,50.00931931,2097.0,2095.3,7.08435515]
[1770229618457,50.24815931,2097.0,2095.3,7.08435515]
[1770229618656,7.95675987,2097.0,2095.3,7.08435515]
[1770229619157,0.00466573,2097.0,2095.9,7.70555332]
[1770229620152,42.29139944,2097.7,2096.1,7.70555332]
[1770229620348,1.09776,2098.8,2096.8,7.94441332]
[1770229620349,0.23869,2098.4,2096.8,7.94441332]
[1770229620550,7.73683134,2098.6,2097.0,7.70555332]
[1770229620754,0.23863,2098.9,2097.3,7.70555332]
[1770229620949,50.26680078,2099.4,2097.6,7.70555332]
[1770229621152,50.26680078,2099.4,2097.6,0.00563402]
[1770229621153,7.97548134,2098.7,2097.6,0.00563402]
[1770229621357,0.477,2098.8,2097.6,7.71118734]
[1770229621553,7.73683134,2098.9,2097.6,7.71118734]
[1770229621752,0.00367644,2099.4,2097.7,7.70555332]
[1770229622058,0.23865,2098.7,2097.6,0.48263402]
[1770229622258,0.23869,2098.3,2097.6,0.00563402]
[1770229622853,1.5748,2098.7,2097.6,7.71118734]
[1770229622854,0.477,2098.7,2097.6,7.71118734]
[1770229623053,0.23863,2098.9,2097.6,7.71118734]
[1770229623357,11.39264754,2100.0,2097.6,7.71118734]
[1770229623358,0.37364204,2103.9,2101.3,1.33477]
[1770229623656,7.35029446,2103.3,2102.8,2.81086005]
[1770229623858,87.13916361,2104.0,2103.1,2.81086005]
[1770229624156,86.9018467,2104.0,2103.9,2.78213303]
[1770229624360,1.0946,2104.8,2103.9,7.14977081]
[1770229624653,1.0946,2104.8,2104.0,7.14977081]
[1770229624956,1.0946,2104.8,2103.8,2.7815662]
[1770229625161,1.09482,2104.4,2103.8,2.7815662]
[1770229625453,1.09508,2103.9,2103.1,0.0039257]
[1770229625654,7.73683134,2103.6,2103.1,0.0039257]
[1770229625855,7.73683134,2103.4,2103.1,0.0039257]
[1770229626060,7.73683134,2103.4,2102.3,0.477]
[1770229626061,7.82929446,2102.8,2102.2,4.17234931]
[1770229626251,7.82929446,2103.2,2101.7,4.17234931]
[1770229626449,7.82929446,2103.2,2101.2,6.95533257]
[1770229626450,7.82929446,2103.2,2101.8,11.27867068]
[1770229626753,7.82929446,2104.4,2102.5,4.17234931]
[1770229626958,7.83479287,2104.4,2103.3,4.17234931]
[1770229627155,0.00549841,2104.4,2103.4,11.27867068]
[1770229627457,0.00549841,2104.4,2103.1,4.17234931]
[1770229627658,7.83479287,2104.4,2103.1,6.96483993]
[1770229627853,7.83479287,2104.4,2102.8,4.17234931]
[1770229628054,1.09441,2105.2,2103.4,7.70555332]
[1770229628254,0.477,2105.8,2103.6,6.47224514]
[1770229628451,1.09395,2106.1,2103.6,6.47224514]
[1770229628452,1.57115,2105.7,2103.6,6.47224514]
[1770229628652,1.09471,2104.6,2103.2,6.47224514]
[1770229628857,1.09471,2104.6,2102.5,0.00545283]
[1770229628858,1.333,2104.1,2102.5,6.47769797]
[1770229629152,0.004121,2104.1,2103.0,6.47224514]
[1770229629655,0.476,2105.3,2103.4,6.46812414]
[1770229630062,4.4319,2106.2,2103.7,6.46812414]
[1770229630063,7.73683134,2105.6,2103.7,6.46812414]
[1770229630458,7.73683134,2105.3,2103.7,6.46812414]
[1770229630654,7.73683134,2104.8,2103.3,5.90457222]
[1770229631163,7.73683134,2104.8,2103.5,5.90457222]
[1770229631460,7.74188087,2105.6,2103.9,5.90457222]
[1770229631655,7.73683134,2105.2,2103.3,5.90457222]
[1770229631859,7.73683134,2105.0,2103.3,5.90457222]
[1770229633057,7.73683134,2105.5,2103.7,5.95509896]
[1770229633561,7.73683134,2105.1,2103.7,5.95509896]
[1770229634057,7.74188087,2105.6,2103.7,5.95509896]
[1770229634266,0.00504953,2105.6,2103.9,6.62368334]
[1770229634659,9.06913134,2105.2,2103.3,6.38563334]
[1770229634865,7.73683134,2104.8,2103.3,6.38563334]
[1770229635260,7.73683134,2104.4,2102.9,6.38563334]
[1770229635465,9.06965134,2104.4,2102.9,6.38563334]
[1770229635669,7.97483134,2104.4,2102.9,6.38563334]
[1770229636260,7.73683134,2104.4,2102.9,6.38563334]
[1770229637163,9.06965134,2104.4,2102.5,6.38777853]
[1770229637466,7.73683134,2104.2,2102.5,6.38777853]
[1770229638370,7.97486134,2104.2,2102.5,6.38777853]
[1770229638572,7.73683134,2103.9,2102.5,6.38777853]
[1770229638868,7.74266765,2103.9,2102.5,6.38777853]
[1770229639569,7.74266765,2103.9,2102.6,0.2382]
[1770229640468,0.00583631,2103.9,2102.6,0.2382]
[1770229640668,7.83513077,2103.9,2102.5,0.00545283]
[1770229641069,7.82929446,2103.7,2102.5,0.00545283]
[1770229641470,0.00583631,2103.9,2103.2,0.23812]
[1770229641766,0.00583631,2103.9,2103.0,0.23815]
[1770229641972,0.00583631,2103.9,2103.1,0.23814]
[1770229642266,7.75670138,2105.6,2104.5,0.23798]
[1770229642862,7.75670138,2106.0,2104.9,1.09455]
[1770229643064,7.75670138,2106.0,2104.3,0.38319615]
[1770229643266,7.75670138,2106.0,2104.4,0.14518615]
[1770229643267,7.76185074,2106.0,2104.4,0.14518615]
[1770229643472,7.74759718,2106.0,2104.4,0.14518615]
[1770229643675,1.09409,2105.8,2104.3,0.00447643]
[1770229643871,0.23798,2104.7,2103.1,4.17234931]
[1770229644075,1.09445,2105.1,2102.8,0.27184204]
[1770229644076,0.476,2104.6,2102.8,0.27184204]
[1770229644368,1.09445,2105.1,2103.0,0.27184204]
[1770229644369,1.0945,2105.0,2103.0,0.27184204]
[1770229644568,0.23797,2104.7,2103.0,0.27184204]
[1770229644875,0.238,2104.4,2102.6,0.27184204]
[1770229645167,0.23793,2105.0,2102.7,0.27184204]
[1770229645372,0.476,2104.9,2103.5,0.23809]
[1770229645674,0.00566253,2104.9,2104.1,0.23803]
[1770229645969,1.09374,2106.5,2104.5,4.44419135]
[1770229645970,7.68320223,2106.4,2104.5,4.44419135]
[1770229646172,7.81912325,2106.0,2104.6,4.17234931]
[1770229646671,7.81912325,2106.0,2104.7,5.12254931]
[1770229646872,7.82255483,2106.0,2104.8,7.14401499]
[1770229647174,8.06037483,2106.0,2104.9,7.13878014]
[1770229647376,8.06037483,2106.0,2104.7,5.12254931]
[1770229647576,8.06037483,2106.0,2104.8,7.13873834]
[1770229647779,7.81912325,2105.4,2104.7,0.9502]
[1770229647973,8.05701325,2105.4,2104.7,0.9502]
[1770229648272,7.51069509,2105.2,2104.4,4.17234931]
[1770229648469,7.51069509,2105.2,2104.5,11.3129027]
[1770229648776,7.51069509,2105.2,2104.6,7.14055339]
[1770229649075,7.74860509,2105.2,2104.8,4.17234931]
[1770229649269,7.51069509,2105.2,2104.4,6.95533257]
[1770229649473,0.23793,2105.0,2104.4,14.72311316]
[1770229649774,0.23793,2105.0,2103.5,12.30033387]
[1770229649775,7.57754331,2105.0,2103.6,7.66250607]
[1770229649982,7.33961331,2104.8,2103.6,7.66250607]
[1770229650370,7.33961331,2104.8,2103.5,0.00339375]
[1770229650577,7.57761331,2104.4,2103.5,0.00339375]
[1770229650777,7.58366732,2104.4,2103.5,0.00339375]
[1770229651083,0.00605401,2104.4,2103.5,0.00339375]
[1770229651479,7.33961331,2104.5,2103.5,0.00339375]
[1770229652181,7.57761331,2104.4,2103.5,0.00339375]
[1770229652482,7.58270552,2104.4,2103.6,0.9507]
[1770229652978,7.57764331,2104.2,2103.6,0.46261]
[1770229653174,4.0053167,2104.2,2103.0,7.66250607]
[1770229653381,0.00509221,2104.4,2103.1,7.81135299]
[1770229653580,0.00509221,2104.4,2103.2,7.81135299]
[1770229653774,0.00509221,2104.4,2103.3,0.14884692]
[1770229653980,0.00509221,2104.4,2103.2,17.96899292]
[1770229653981,0.24307221,2104.4,2103.4,7.81135299]
[1770229654280,0.24307221,2104.4,2103.5,0.14884692]
[1770229654581,0.475,2104.7,2103.7,7.66250607]
[1770229654776,1.09465,2104.5,2103.8,0.14882337]
[1770229654976,0.23798,2104.4,2103.4,0.00337033]
[1770229655173,0.475,2104.7,2103.5,7.81133073]
[1770229655374,0.475,2104.7,2103.6,7.81133073]
[1770229655578,0.4811179,2104.7,2103.8,7.66250607]
[1770229655775,0.4811179,2104.7,2104.1,7.66250607]
[1770229655983,1.09434,2105.1,2104.2,0.14877929]
[1770229656173,0.23797,2104.5,2103.5,4.75120049]
[1770229656375,0.23797,2104.5,2103.6,7.81131452]
[1770229656577,0.475,2105.3,2103.7,7.81131452]
[1770229656778,1.56925,2105.3,2104.1,7.66250607]
[1770229656978,0.23794,2104.7,2103.9,4.75120049]
[1770229657281,7.57758331,2104.5,2103.9,4.75120049]
[1770229657481,0.23797,2104.5,2103.9,4.75120049]
[1770229657674,0.23797,2104.5,2103.4,7.6658764]
[1770229658075,8.43437331,2104.3,2103.4,0.00337033]
[1770229658285,0.23801,2104.1,2103.4,0.00337033]
[1770229658476,0.23795,2104.6,2103.4,12.41707689]
[1770229658682,0.23796,2104.5,2103.4,12.41707689]
[1770229658883,0.23796,2104.5,2103.4,7.6658764]
[1770229659080,0.23802,2104.0,2103.4,0.00337033]
[1770229659285,8.05257331,2104.5,2103.4,0.00337033]
[1770229659584,0.23799,2104.3,2103.4,12.41707689]
[1770229659786,0.23799,2104.3,2103.4,7.6658764]
[1770229659978,7.57762331,2104.2,2103.5,4.75120049]
[1770229660185,0.23802,2104.0,2103.4,0.00337033]
[1770229660483,0.23807,2103.6,2102.7,7.08336341]
[1770229660881,0.23807,2103.6,2102.7,4.75120049]
[1770229661082,7.57763331,2104.0,2102.9,4.75120049]
[1770229661283,0.23803,2103.9,2103.0,5.11975945]
[1770229661479,0.23805,2103.8,2103.1,5.11975945]
[1770229661677,0.23805,2103.8,2102.9,12.41793948]
[1770229661678,7.57766331,2103.8,2103.2,5.11975945]
[1770229661875,0.23808,2103.5,2102.9,0.00423292]
[1770229662081,0.2381,2103.3,2102.9,4.21121341]
[1770229662282,0.23812,2103.2,2102.0,7.66250607]
[1770229662478,7.33961331,2103.5,2102.0,7.66250607]
[1770229662479,0.23814,2102.9,2102.0,7.66250607]
[1770229663179,0.23816,2102.8,2102.1,4.21121341]
[1770229663385,0.23816,2102.8,2102.0,7.66815494]
[1770229663585,7.33961331,2103.5,2102.1,11.87371948]
[1770229663790,0.23811,2103.2,2102.1,7.66250607]
[1770229664087,0.475,2103.6,2102.3,7.66250607]
[1770229664288,0.00422311,2104.0,2102.3,22.26971607]
[1770229664584,0.00422311,2104.0,2102.8,7.66250607]
[1770229664983,0.00422311,2104.0,2102.9,11.87371948]
[1770229665283,0.24224311,2104.0,2103.0,7.66250607]
[1770229665586,0.00422311,2104.0,2103.0,7.66250607]
[1770229665981,0.00422311,2104.0,2103.2,4.21121341]
[1770229666186,0.00422311,2104.0,2103.2,11.87371948]
[1770229666385,7.33961331,2105.5,2103.9,7.90053607]
[1770229666687,7.57746331,2105.5,2104.0,7.66250607]
[1770229667083,1.09418,2105.4,2104.0,7.66250607]
[1770229667287,0.23793,2104.8,2103.6,7.66250607]
[1770229667488,0.23795,2104.6,2104.0,0.00509549]
[1770229668088,8.43416331,2104.7,2103.2,7.66250607]
[1770229668389,0.23799,2104.3,2103.2,7.66250607]
[1770229668787,0.23799,2104.3,2102.7,8.97395978]
[1770229668788,0.23802,2104.0,2102.8,7.66250607]
[1770229669089,7.33961331,2104.2,2102.8,7.66708315]
[1770229669284,7.57761331,2104.2,2102.9,7.81135965]
[1770229669589,7.57761331,2104.2,2103.1,4.21121341]
[1770229669786,0.23801,2104.1,2103.0,7.66250607]
[1770229670281,0.23801,2104.1,2103.0,13.31966411]
[1770229670484,0.23801,2104.1,2103.0,7.66250607]
[1770229670685,1.0951,2103.7,2102.8,0.00457708]
[1770229670986,0.2381,2103.4,2102.8,0.00457708]
[1770229671189,7.33961331,2104.4,2103.0,7.66250607]
[1770229671487,1.09501,2103.9,2102.8,0.00457708]
[1770229671684,1.33313,2103.7,2102.8,0.00457708]
[1770229671884,1.09518,2103.5,2102.8,0.00457708]
[1770229672080,0.23808,2103.5,2102.8,0.00457708]
[1770229672281,8.67299331,2103.3,2102.3,7.66250607]
[1770229672488,1.09566,2102.6,2101.6,5.65715804]
[1770229672682,0.23819,2102.5,2101.5,7.66250607]
[1770229672887,0.23819,2102.5,2101.7,4.21121341]
[1770229673090,7.57785331,2102.1,2101.0,13.31966411]
[1770229673283,0.23824,2102.1,2101.0,7.66779606]
[1770229673483,7.33961331,2102.5,2101.1,7.66250607]
[1770229673682,8.67377331,2102.3,2101.1,7.66250607]
[1770229673990,1.33403,2102.5,2101.3,7.72705198]
[1770229674393,0.23829,2101.9,2101.0,0.00528999]
[1770229674689,0.24324959,2101.9,2101.0,0.00528999]
[1770229675192,8.80733283,2101.5,2101.0,9.99e-06]
[1770229675385,8.80733283,2101.5,2100.0,5.65715804]
[1770229675386,0.23836,2101.2,2099.9,7.72705198]
[1770229675590,0.23838,2101.0,2099.9,7.72705198]
[1770229676187,0.476,2101.1,2099.9,7.72705198]
[1770229676391,0.23838,2101.0,2099.9,7.7317553]
[1770229676590,8.18701283,2101.1,2099.9,7.7317553]
[1770229676889,0.23845,2100.5,2099.9,0.00470332]
[1770229677094,1.0966,2101.0,2099.9,7.7317553]
[1770229677388,0.23844,2100.5,2099.9,0.00470332]
[1770229677692,0.23838,2101.0,2099.9,0.00470332]
[1770229677885,0.2384,2100.9,2099.9,0.00470332]
[1770229678088,0.23841,2100.8,2099.9,0.00470332]
[1770229678495,7.61673854,2100.8,2099.9,0.00470332]
[1770229679296,0.23843,2100.7,2099.9,0.00470332]
[1770229679797,0.476,2100.6,2099.9,0.00470332]
[1770229680595,0.476,2100.6,2099.1,7.65251178]
[1770229681395,0.476,2100.6,2099.4,7.65251178]
[1770229681600,0.476,2100.6,2099.4,7.6586845]
[1770229682396,0.71444,2100.6,2099.4,7.6586845]
[1770229682595,0.23845,2100.4,2099.4,7.6586845]
[1770229682801,0.23847,2100.3,2099.4,7.6586845]
[1770229683097,7.61666854,2101.4,2099.6,7.89105178]
[1770229683302,1.09648,2101.2,2099.6,7.65251178]
[1770229683601,7.37832854,2101.2,2099.6,7.65251178]
[1770229683799,7.61668854,2101.2,2099.6,7.65251178]
[1770229683996,0.23845,2100.5,2099.6,7.65251178]
[1770229684196,0.00606027,2101.2,2099.6,7.65251178]
[1770229684396,0.00606027,2101.2,2100.0,7.65251178]
[1770229684699,0.23827,2102.0,2100.4,7.65251178]
[1770229684897,0.476,2102.2,2100.8,7.89091178]
[1770229685100,0.23828,2102.0,2100.8,7.65251178]
[1770229685295,0.23828,2101.9,2100.8,7.65251178]
[1770229685501,0.00465186,2101.9,2100.8,7.65251178]
[1770229685901,0.2383,2101.8,2100.8,7.65251178]
[1770229686605,7.3829804,2101.9,2100.4,7.65251178]
[1770229686800,0.00465186,2101.9,2100.4,7.65251178]
[1770229687006,0.23834,2101.4,2100.4,7.65251178]
[1770229687505,0.23835,2101.3,2100.4,7.65251178]
[1770229687902,7.61664854,2101.6,2100.4,7.65251178]
[1770229688506,0.23832,2101.6,2100.4,7.65251178]
[1770229688900,0.00465186,2101.9,2100.4,7.65251178]
[1770229689101,0.23829,2101.8,2100.4,7.65251178]
[1770229689700,0.00465186,2101.9,2100.4,7.89096178]
[1770229690301,0.23831,2101.7,2100.4,7.65251178]
[1770229690703,0.23834,2101.4,2100.4,7.65251178]
[1770229691004,0.476,2101.7,2100.4,7.65251178]
[1770229691908,0.476,2101.7,2100.4,7.89096178]
[1770229692106,5.60822597,2103.2,2100.4,7.89096178]
[1770229692107,49.44002338,2103.7,2101.7,7.65251178]
[1770229692305,7.37832854,2103.7,2102.1,7.65251178]
[1770229692612,1.09504,2104.0,2102.3,7.65251178]
[1770229692613,7.37832854,2103.9,2102.3,7.65251178]
[1770229692907,0.23811,2103.4,2102.3,7.65251178]
[1770229693109,0.2442602,2103.4,2102.3,7.65602334]
[1770229693304,0.23812,2103.3,2102.3,7.65602334]
[1770229694403,7.38447874,2103.4,2102.3,7.65602334]
[1770229694608,0.23816,2103.0,2102.3,0.00351156]
[1770229695210,0.476,2103.3,2102.3,7.65602334]
[1770229695604,0.23814,2103.2,2102.3,0.00351156]
[1770229696506,0.0061502,2103.4,2102.4,7.65251178]
[1770229698002,0.2442702,2103.4,2102.4,7.65251178]
[1770229698900,0.7202702,2103.4,2102.4,7.65251178]
[1770229699304,0.23812,2103.3,2102.3,0.00351156]
[1770229699811,0.23815,2103.1,2102.3,0.00351156]
[1770229700506,0.0061502,2103.4,2102.3,7.65602334]
[1770229700710,0.476,2103.3,2102.3,7.65602334]
[1770229700908,0.0061502,2103.4,2102.3,7.65602334]
[1770229701708,7.85432854,2104.9,2102.9,2.79705502]
[1770229701912,0.476,2104.9,2103.3,7.89062178]
[1770229702206,0.476,2105.3,2103.8,7.65251178]
[1770229702414,0.23797,2104.7,2103.8,7.65251178]
[1770229702603,0.00363802,2104.7,2103.8,7.65814257]
[1770229702911,7.85432854,2105.6,2103.8,7.65814257]
[1770229703109,0.476,2105.6,2103.8,7.65814257]
[1770229703303,0.476,2105.6,2104.0,7.89055178]
[1770229703506,0.476,2105.6,2104.4,7.65251178]
[1770229703707,0.2378,2106.2,2104.4,7.89051178]
[1770229703910,0.2378,2106.2,2104.4,7.65251178]